[Event "Titled Tuesday Blitz May 2 Early 2023"]
[White "Fernandez Siles, Luis"]
[Black "Delorme, Alban"]
[WhiteFideId "2209420"]
[BlackFideId "623636"]
[WhiteElo "2195"]
[BlackElo "2196"]
[Result "1-0"]
[Round "11"]
[TimeControl "180+2"]
[Date "2023.05.03"]
[WhiteClock "0:00:00"]
[BlackClock "0:00:00"]

1. d4 {[%clk 0:00:01]}  Nf6 {[%clk 0:00:01]} 2. c4 {[%clk 0:00:01]}  g6 {[%clk 0:00:01]} 3. Nc3 {[%clk 0:00:01]}  Bg7 {[%clk 0:00:01]} 4. e4 {[%clk 0:00:01]}  d6 {[%clk 0:00:01]} 5. Nf3 {[%clk 0:00:01]}  O-O {[%clk 0:00:01]} 6. Be2 {[%clk 0:00:01]}  e5 {[%clk 0:00:01]} 7. O-O {[%clk 0:00:01]}  exd4 {[%clk 0:00:01]} 8. Nxd4 {[%clk 0:00:01]}  Re8 {[%clk 0:00:01]} 9. f3 {[%clk 0:00:01]}  c6 {[%clk 0:00:01]} 10. Kh1 {[%clk 0:00:01]}  d5 {[%clk 0:00:01]} 11. exd5 {[%clk 0:00:01]}  cxd5 {[%clk 0:00:01]} 12. c5 {[%clk 0:00:01]}  Nc6 {[%clk 0:00:01]} 13. Bg5 {[%clk 0:00:01]}  h6 {[%clk 0:00:01]} 14. Bh4 {[%clk 0:00:01]}  Be6 {[%clk 0:00:01]} 15. Rc1 {[%clk 0:00:01]}  Qd7 {[%clk 0:00:01]} 16. Bf2 {[%clk 0:00:01]}  Nh5 {[%clk 0:00:01]} 17. Ncb5 {[%clk 0:00:01]}  Nf4 {[%clk 0:00:01]} 18. Re1 {[%clk 0:00:01]}  Nxe2 {[%clk 0:00:01]} 19. Rxe2 {[%clk 0:00:01]}  Nxd4 {[%clk 0:00:01]} 20. Nxd4 {[%clk 0:00:01]}  Rac8 {[%clk 0:00:01]} 21. b4 {[%clk 0:00:01]}  a5 {[%clk 0:00:01]} 22. a3 {[%clk 0:00:01]}  axb4 {[%clk 0:00:01]} 23. axb4 {[%clk 0:00:01]}  Bf5 {[%clk 0:00:01]} 24. g4 {[%clk 0:00:00]}  Rxe2 {[%clk 0:00:00]} 25. Nxe2 {[%clk 0:00:00]}  Be6 {[%clk 0:00:00]} 26. Bd4 {[%clk 0:00:00]}  Re8 {[%clk 0:00:00]} 27. Bxg7 {[%clk 0:00:00]}  Kxg7 {[%clk 0:00:00]} 28. Qd4+ {[%clk 0:00:00]}  Kg8 {[%clk 0:00:00]} 29. Nf4 {[%clk 0:00:00]}  Bxg4 {[%clk 0:00:00]} 30. fxg4 {[%clk 0:00:00]}  Qxg4 {[%clk 0:00:00]} 31. Rf1 {[%clk 0:00:00]}  Re4 {[%clk 0:00:00]} 32. Qf2 {[%clk 0:00:00]}  d4 {[%clk 0:00:00]} 33. Nd5 {[%clk 0:00:00]}  Re6 {[%clk 0:00:00]} 34. Qxf7+ {[%clk 0:00:00]}  Kh8 {[%clk 0:00:00]} 35. Qf8+ {[%clk 0:00:00]}  Kh7 {[%clk 0:00:00]} 36. Rf7# {[%clk 0:00:00]} 1-0


[Site "https://www.chess.com"]

[Event "Titled Tuesday Blitz May 2 Early 2023"]
[White "Melikhov, Evgeny V."]
[Black "Kohler, Aran"]
[WhiteFideId "4122046"]
[BlackFideId "1002856"]
[WhiteElo "2158"]
[BlackElo "2010"]
[Result "0-1"]
[Round "11"]
[TimeControl "180+2"]
[Date "2023.05.03"]
[WhiteClock "0:00:00"]
[BlackClock "0:00:00"]

1. d4 {[%clk 0:00:01]}  Nf6 {[%clk 0:00:01]} 2. c4 {[%clk 0:00:01]}  c5 {[%clk 0:00:01]} 3. d5 {[%clk 0:00:01]}  b5 {[%clk 0:00:01]} 4. cxb5 {[%clk 0:00:01]}  a6 {[%clk 0:00:01]} 5. b6 {[%clk 0:00:01]}  Qxb6 {[%clk 0:00:01]} 6. Nc3 {[%clk 0:00:01]}  d6 {[%clk 0:00:01]} 7. a4 {[%clk 0:00:01]}  a5 {[%clk 0:00:01]} 8. e4 {[%clk 0:00:01]}  g6 {[%clk 0:00:01]} 9. Bb5+ {[%clk 0:00:01]}  Nbd7 {[%clk 0:00:01]} 10. Nf3 {[%clk 0:00:01]}  Bg7 {[%clk 0:00:01]} 11. e5 {[%clk 0:00:01]}  dxe5 {[%clk 0:00:01]} 12. Nxe5 {[%clk 0:00:01]}  O-O {[%clk 0:00:01]} 13. Nc4 {[%clk 0:00:01]}  Qc7 {[%clk 0:00:01]} 14. Bd2 {[%clk 0:00:01]}  Ne8 {[%clk 0:00:01]} 15. Bc6 {[%clk 0:00:01]}  Rb8 {[%clk 0:00:01]} 16. Nb5 {[%clk 0:00:01]}  Qd8 {[%clk 0:00:01]} 17. Bxa5 {[%clk 0:00:01]}  Nb6 {[%clk 0:00:01]} 18. O-O {[%clk 0:00:00]}  Nd6 {[%clk 0:00:01]} 19. Nxb6 {[%clk 0:00:00]}  Rxb6 {[%clk 0:00:01]} 20. Nxd6 {[%clk 0:00:00]}  exd6 {[%clk 0:00:01]} 21. Ra2 {[%clk 0:00:00]}  Ba6 {[%clk 0:00:01]} 22. Re1 {[%clk 0:00:00]}  Qb8 {[%clk 0:00:01]} 23. Bxb6 {[%clk 0:00:00]}  Qxb6 {[%clk 0:00:01]} 24. b3 {[%clk 0:00:00]}  Bc3 {[%clk 0:00:01]} 25. Re7 {[%clk 0:00:00]}  Qd8 {[%clk 0:00:01]} 26. Ra7 {[%clk 0:00:00]}  Bc8 {[%clk 0:00:01]} 27. Ra8 {[%clk 0:00:00]}  Qb6 {[%clk 0:00:00]} 28. Re2 {[%clk 0:00:00]}  Kg7 {[%clk 0:00:00]} 29. h3 {[%clk 0:00:00]}  Ba6 {[%clk 0:00:00]} 30. Rxf8 {[%clk 0:00:00]}  Kxf8 {[%clk 0:00:00]} 31. Re8+ {[%clk 0:00:00]}  Kg7 {[%clk 0:00:00]} 32. Qc2 {[%clk 0:00:00]}  Be5 {[%clk 0:00:00]} 33. g3 {[%clk 0:00:00]}  c4 {[%clk 0:00:00]} 34. bxc4 {[%clk 0:00:00]}  Qd4 {[%clk 0:00:00]} 35. Kg2 {[%clk 0:00:00]}  Bxc4 {[%clk 0:00:00]} 36. Ra8 {[%clk 0:00:00]}  Bd3 {[%clk 0:00:00]} 37. Qc1 {[%clk 0:00:00]}  Be4+ {[%clk 0:00:00]} 38. Kh2 {[%clk 0:00:00]}  Qxf2# {[%clk 0:00:00]} 0-1


[Site "https://www.chess.com"]

[Event "Titled Tuesday Blitz May 2 Early 2023"]
[White "Cramling Bellon, Anna"]
[Black "Prudnykova, Olga"]
[WhiteFideId "32009232"]
[BlackFideId "14121093"]
[WhiteElo "1972"]
[BlackElo "2113"]
[Result "0-1"]
[Round "11"]
[TimeControl "180+2"]
[Date "2023.05.03"]
[WhiteClock "0:00:00"]
[BlackClock "0:00:00"]

1. d4 {[%clk 0:00:01]}  Nf6 {[%clk 0:00:01]} 2. c4 {[%clk 0:00:01]}  g6 {[%clk 0:00:01]} 3. Nc3 {[%clk 0:00:01]}  d5 {[%clk 0:00:01]} 4. cxd5 {[%clk 0:00:01]}  Nxd5 {[%clk 0:00:01]} 5. e4 {[%clk 0:00:01]}  Nxc3 {[%clk 0:00:01]} 6. bxc3 {[%clk 0:00:01]}  c5 {[%clk 0:00:01]} 7. Nf3 {[%clk 0:00:01]}  Bg7 {[%clk 0:00:01]} 8. Qa4+ {[%clk 0:00:01]}  Bd7 {[%clk 0:00:01]} 9. Qa3 {[%clk 0:00:01]}  cxd4 {[%clk 0:00:01]} 10. cxd4 {[%clk 0:00:01]}  O-O {[%clk 0:00:01]} 11. Bg5 {[%clk 0:00:01]}  Re8 {[%clk 0:00:01]} 12. Be2 {[%clk 0:00:01]}  Bg4 {[%clk 0:00:01]} 13. Rd1 {[%clk 0:00:01]}  Bxf3 {[%clk 0:00:01]} 14. Qxf3 {[%clk 0:00:01]}  Bxd4 {[%clk 0:00:01]} 15. Bc4 {[%clk 0:00:00]}  Rf8 {[%clk 0:00:01]} 16. Bh6 {[%clk 0:00:00]}  Qa5+ {[%clk 0:00:00]} 17. Kf1 {[%clk 0:00:00]}  Bg7 {[%clk 0:00:00]} 18. Rd5 {[%clk 0:00:00]}  Qc7 {[%clk 0:00:00]} 19. Bxg7 {[%clk 0:00:00]}  Kxg7 {[%clk 0:00:00]} 20. Qc3+ {[%clk 0:00:00]}  f6 {[%clk 0:00:00]} 21. Rd3 {[%clk 0:00:00]}  Nc6 {[%clk 0:00:00]} 22. Bd5 {[%clk 0:00:00]}  Rac8 {[%clk 0:00:00]} 23. Rh3 {[%clk 0:00:00]}  Na5 {[%clk 0:00:00]} 24. Qxc7 {[%clk 0:00:00]}  Rxc7 {[%clk 0:00:00]} 25. Ke2 {[%clk 0:00:00]}  Rc2+ {[%clk 0:00:00]} 26. Kd3 {[%clk 0:00:00]}  Rfc8 {[%clk 0:00:00]} 27. Kd4 {[%clk 0:00:00]}  e5+ {[%clk 0:00:00]} 0-1


[Site "https://www.chess.com"]

[Event "Titled Tuesday Blitz May 2 Early 2023"]
[White "Rottenwohrer Suarez, Juan"]
[Black "Smietanska, Wiktoria"]
[WhiteFideId "32068182"]
[BlackFideId "21869359"]
[WhiteElo "2174"]
[BlackElo "1995"]
[Result "1-0"]
[Round "11"]
[TimeControl "180+2"]
[Date "2023.05.03"]
[WhiteClock "0:00:00"]
[BlackClock "0:00:00"]

1. d4 {[%clk 0:00:01]}  Nf6 {[%clk 0:00:01]} 2. c4 {[%clk 0:00:01]}  g6 {[%clk 0:00:01]} 3. Nc3 {[%clk 0:00:01]}  Bg7 {[%clk 0:00:01]} 4. e4 {[%clk 0:00:01]}  d6 {[%clk 0:00:01]} 5. Be2 {[%clk 0:00:01]}  O-O {[%clk 0:00:01]} 6. Be3 {[%clk 0:00:01]}  e5 {[%clk 0:00:01]} 7. d5 {[%clk 0:00:01]}  Ne8 {[%clk 0:00:01]} 8. g4 {[%clk 0:00:01]}  f5 {[%clk 0:00:01]} 9. gxf5 {[%clk 0:00:01]}  gxf5 {[%clk 0:00:01]} 10. exf5 {[%clk 0:00:01]}  Bxf5 {[%clk 0:00:01]} 11. Nf3 {[%clk 0:00:01]}  Nf6 {[%clk 0:00:01]} 12. Rg1 {[%clk 0:00:01]}  Kh8 {[%clk 0:00:01]} 13. Ng5 {[%clk 0:00:01]}  c6 {[%clk 0:00:01]} 14. Qd2 {[%clk 0:00:01]}  cxd5 {[%clk 0:00:01]} 15. cxd5 {[%clk 0:00:01]}  Nbd7 {[%clk 0:00:01]} 16. h4 {[%clk 0:00:00]}  a6 {[%clk 0:00:01]} 17. h5 {[%clk 0:00:00]}  Ng8 {[%clk 0:00:01]} 18. Ne6 {[%clk 0:00:00]}  Bxe6 {[%clk 0:00:01]} 19. dxe6 {[%clk 0:00:00]}  Ndf6 {[%clk 0:00:01]} 20. h6 {[%clk 0:00:00]}  Nxh6 {[%clk 0:00:00]} 21. Bxh6 {[%clk 0:00:00]}  Bxh6 {[%clk 0:00:00]} 22. Qxh6 {[%clk 0:00:00]}  Qe7 {[%clk 0:00:00]} 23. O-O-O {[%clk 0:00:00]}  Rg8 {[%clk 0:00:00]} 24. Bd3 {[%clk 0:00:00]}  Qxe6 {[%clk 0:00:00]} 25. Bxh7 {[%clk 0:00:00]}  Rxg1 {[%clk 0:00:00]} 26. Bf5+ {[%clk 0:00:00]}  Kg8 {[%clk 0:00:00]} 27. Bxe6# {[%clk 0:00:00]} 1-0


[Site "https://www.chess.com"]

[Event "Titled Tuesday Blitz May 2 Early 2023"]
[White "Pasti, Aron"]
[Black "Srdanovic, Jovana"]
[WhiteFideId "785857"]
[BlackFideId "954810"]
[WhiteElo "2173"]
[BlackElo "2145"]
[Result "0-1"]
[Round "11"]
[TimeControl "180+2"]
[Date "2023.05.03"]
[WhiteClock "0:00:00"]
[BlackClock "0:00:00"]

1. e4 {[%clk 0:00:01]}  c6 {[%clk 0:00:01]} 2. d4 {[%clk 0:00:01]}  d5 {[%clk 0:00:01]} 3. exd5 {[%clk 0:00:01]}  cxd5 {[%clk 0:00:01]} 4. Bd3 {[%clk 0:00:01]}  Nc6 {[%clk 0:00:01]} 5. c3 {[%clk 0:00:01]}  Qc7 {[%clk 0:00:01]} 6. Nf3 {[%clk 0:00:01]}  Nf6 {[%clk 0:00:01]} 7. Bg5 {[%clk 0:00:01]}  Bg4 {[%clk 0:00:01]} 8. Nbd2 {[%clk 0:00:01]}  e6 {[%clk 0:00:01]} 9. Qc2 {[%clk 0:00:01]}  h6 {[%clk 0:00:01]} 10. Bh4 {[%clk 0:00:01]}  Bd6 {[%clk 0:00:01]} 11. h3 {[%clk 0:00:01]}  Bxf3 {[%clk 0:00:01]} 12. Nxf3 {[%clk 0:00:01]}  g5 {[%clk 0:00:01]} 13. Bg3 {[%clk 0:00:01]}  Bxg3 {[%clk 0:00:01]} 14. fxg3 {[%clk 0:00:01]}  Qxg3+ {[%clk 0:00:01]} 15. Kf1 {[%clk 0:00:01]}  g4 {[%clk 0:00:01]} 16. hxg4 {[%clk 0:00:01]}  Nxg4 {[%clk 0:00:01]} 17. Re1 {[%clk 0:00:01]}  O-O-O {[%clk 0:00:01]} 18. Rh3 {[%clk 0:00:01]}  Qf4 {[%clk 0:00:01]} 19. Qe2 {[%clk 0:00:01]}  Rhg8 {[%clk 0:00:01]} 20. Kg1 {[%clk 0:00:01]}  Rg7 {[%clk 0:00:00]} 21. b4 {[%clk 0:00:01]}  Rdg8 {[%clk 0:00:00]} 22. a4 {[%clk 0:00:01]}  Nf6 {[%clk 0:00:00]} 23. Rh2 {[%clk 0:00:00]}  Ng4 {[%clk 0:00:00]} 24. Rh4 {[%clk 0:00:00]}  Qf6 {[%clk 0:00:00]} 25. a5 {[%clk 0:00:00]}  e5 {[%clk 0:00:00]} 26. b5 {[%clk 0:00:00]}  e4 {[%clk 0:00:00]} 27. bxc6 {[%clk 0:00:00]}  exf3 {[%clk 0:00:00]} 28. cxb7+ {[%clk 0:00:00]}  Kb8 {[%clk 0:00:00]} 29. Qxf3 {[%clk 0:00:00]}  Qxf3 {[%clk 0:00:00]} 30. gxf3 {[%clk 0:00:00]}  Ne5+ {[%clk 0:00:00]} 31. Kf2 {[%clk 0:00:00]}  Nxd3+ {[%clk 0:00:00]} 32. Ke2 {[%clk 0:00:00]}  Nxe1 {[%clk 0:00:00]} 33. Kxe1 {[%clk 0:00:00]}  Rg1+ {[%clk 0:00:00]} 34. Ke2 {[%clk 0:00:00]}  R8g2+ {[%clk 0:00:00]} 35. Ke3 {[%clk 0:00:00]}  Re1+ {[%clk 0:00:00]} 36. Kf4 {[%clk 0:00:00]}  Kxb7 {[%clk 0:00:00]} 37. Rxh6 {[%clk 0:00:00]}  Rf2 {[%clk 0:00:00]} 38. Rh7 {[%clk 0:00:00]}  Ref1 {[%clk 0:00:00]} 39. Rxf7+ {[%clk 0:00:00]}  Ka6 {[%clk 0:00:00]} 40. Kg3 {[%clk 0:00:00]}  Rc2 {[%clk 0:00:00]} 41. Kg4 {[%clk 0:00:00]}  Rxc3 {[%clk 0:00:00]} 42. f4 {[%clk 0:00:00]}  Rg1+ {[%clk 0:00:00]} 43. Kh4 {[%clk 0:00:00]}  Rf3 {[%clk 0:00:00]} 44. f5 {[%clk 0:00:00]}  Rf2 {[%clk 0:00:00]} 45. Kh3 {[%clk 0:00:00]}  Rf3+ {[%clk 0:00:00]} 46. Kh4 {[%clk 0:00:00]}  Rfg3 {[%clk 0:00:00]} 47. f6 {[%clk 0:00:00]}  Rg8 {[%clk 0:00:00]} 48. Rxa7+ {[%clk 0:00:00]}  Kxa7 {[%clk 0:00:00]} 0-1


[Site "https://www.chess.com"]

[Event "Titled Tuesday Blitz May 2 Early 2023"]
[White "Quirke, Jeffrey"]
[Black "Blokhin, Sofia"]
[WhiteFideId "2013029"]
[BlackFideId "4508190"]
[WhiteElo "2007"]
[BlackElo "1994"]
[Result "0-1"]
[Round "11"]
[TimeControl "180+2"]
[Date "2023.05.03"]
[WhiteClock "0:00:00"]
[BlackClock "0:00:00"]

1. e4 {[%clk 0:00:01]}  c5 {[%clk 0:00:01]} 2. Nc3 {[%clk 0:00:01]}  e6 {[%clk 0:00:01]} 3. g3 {[%clk 0:00:01]}  g6 {[%clk 0:00:01]} 4. Bg2 {[%clk 0:00:01]}  Bg7 {[%clk 0:00:01]} 5. d3 {[%clk 0:00:01]}  Nc6 {[%clk 0:00:01]} 6. Nge2 {[%clk 0:00:01]}  Nge7 {[%clk 0:00:01]} 7. O-O {[%clk 0:00:01]}  O-O {[%clk 0:00:01]} 8. f4 {[%clk 0:00:01]}  d5 {[%clk 0:00:01]} 9. g4 {[%clk 0:00:01]}  d4 {[%clk 0:00:01]} 10. Nb1 {[%clk 0:00:01]}  f5 {[%clk 0:00:01]} 11. Ng3 {[%clk 0:00:01]}  b5 {[%clk 0:00:01]} 12. a4 {[%clk 0:00:01]}  b4 {[%clk 0:00:01]} 13. Nd2 {[%clk 0:00:01]}  Rb8 {[%clk 0:00:01]} 14. b3 {[%clk 0:00:01]}  Na5 {[%clk 0:00:01]} 15. gxf5 {[%clk 0:00:01]}  exf5 {[%clk 0:00:01]} 16. e5 {[%clk 0:00:01]}  Nd5 {[%clk 0:00:01]} 17. Nc4 {[%clk 0:00:01]}  Nxc4 {[%clk 0:00:01]} 18. dxc4 {[%clk 0:00:00]}  Nc3 {[%clk 0:00:01]} 19. Qd3 {[%clk 0:00:00]}  h5 {[%clk 0:00:00]} 20. Bd2 {[%clk 0:00:00]}  h4 {[%clk 0:00:00]} 21. Bxc3 {[%clk 0:00:00]}  dxc3 {[%clk 0:00:00]} 22. Bd5+ {[%clk 0:00:00]}  Kh8 {[%clk 0:00:00]} 23. Nh1 {[%clk 0:00:00]}  Bb7 {[%clk 0:00:00]} 24. Rad1 {[%clk 0:00:00]}  g5 {[%clk 0:00:00]} 25. Bxb7 {[%clk 0:00:00]}  Qxd3 {[%clk 0:00:00]} 26. Rxd3 {[%clk 0:00:00]}  Rxb7 {[%clk 0:00:00]} 27. fxg5 {[%clk 0:00:00]}  Bxe5 {[%clk 0:00:00]} 28. Rh3 {[%clk 0:00:00]}  Bd4+ {[%clk 0:00:00]} 29. Nf2 {[%clk 0:00:00]}  Kg7 {[%clk 0:00:00]} 30. Rxh4 {[%clk 0:00:00]}  Re8 {[%clk 0:00:00]} 31. Rf4 {[%clk 0:00:00]}  Kg6 {[%clk 0:00:00]} 32. h4 {[%clk 0:00:00]}  Re2 {[%clk 0:00:00]} 33. Kg2 {[%clk 0:00:00]}  Rxc2 {[%clk 0:00:00]} 0-1


[Site "https://www.chess.com"]

[Event "Titled Tuesday Blitz May 2 Early 2023"]
[White "Kopacz, Grzegorz"]
[Black "Torres Dominguez, David"]
[WhiteFideId "1109880"]
[BlackFideId "2220857"]
[WhiteElo "2037"]
[BlackElo "1999"]
[Result "0-1"]
[Round "11"]
[TimeControl "180+2"]
[Date "2023.05.03"]
[WhiteClock "0:00:01"]
[BlackClock "0:00:00"]

1. d4 {[%clk 0:00:01]}  e5 {[%clk 0:00:01]} 2. dxe5 {[%clk 0:00:01]}  d6 {[%clk 0:00:01]} 3. exd6 {[%clk 0:00:01]}  Bxd6 {[%clk 0:00:01]} 4. Nf3 {[%clk 0:00:01]}  Bg4 {[%clk 0:00:01]} 5. e3 {[%clk 0:00:01]}  Qe7 {[%clk 0:00:01]} 6. Nc3 {[%clk 0:00:01]}  Nc6 {[%clk 0:00:01]} 7. Bb5 {[%clk 0:00:01]}  Nf6 {[%clk 0:00:01]} 8. O-O {[%clk 0:00:01]}  O-O-O {[%clk 0:00:01]} 9. Qe2 {[%clk 0:00:01]}  Ne5 {[%clk 0:00:01]} 10. Kh1 {[%clk 0:00:01]}  Kb8 {[%clk 0:00:01]} 11. a4 {[%clk 0:00:01]}  c6 {[%clk 0:00:01]} 12. a5 {[%clk 0:00:01]}  cxb5 {[%clk 0:00:00]} 13. Nxb5 {[%clk 0:00:01]}  Nxf3 {[%clk 0:00:00]} 14. gxf3 {[%clk 0:00:01]}  Qe5 {[%clk 0:00:00]} 15. f4 {[%clk 0:00:01]}  Bxe2 {[%clk 0:00:00]} 16. fxe5 {[%clk 0:00:01]}  Bxb5 {[%clk 0:00:00]} 17. Rg1 {[%clk 0:00:01]}  Bxe5 {[%clk 0:00:00]} 0-1


[Site "https://www.chess.com"]

[Event "Titled Tuesday Blitz May 2 Early 2023"]
[White "Necula, Iulian"]
[Black "Vasques, Antonio Pedro Freixial"]
[WhiteFideId "1232380"]
[BlackFideId "1908332"]
[WhiteElo "1790"]
[BlackElo "2212"]
[Result "1-0"]
[Round "11"]
[TimeControl "180+2"]
[Date "2023.05.03"]
[WhiteClock "0:00:00"]
[BlackClock "0:00:00"]

1. d4 {[%clk 0:00:01]}  Nf6 {[%clk 0:00:01]} 2. Nc3 {[%clk 0:00:01]}  d5 {[%clk 0:00:01]} 3. Bf4 {[%clk 0:00:01]}  a6 {[%clk 0:00:01]} 4. e3 {[%clk 0:00:01]}  Bf5 {[%clk 0:00:01]} 5. Nf3 {[%clk 0:00:01]}  e6 {[%clk 0:00:01]} 6. Ne5 {[%clk 0:00:01]}  Bd6 {[%clk 0:00:01]} 7. g4 {[%clk 0:00:01]}  Bg6 {[%clk 0:00:01]} 8. h4 {[%clk 0:00:01]}  Ne4 {[%clk 0:00:01]} 9. h5 {[%clk 0:00:01]}  Nxc3 {[%clk 0:00:01]} 10. bxc3 {[%clk 0:00:01]}  Be4 {[%clk 0:00:01]} 11. f3 {[%clk 0:00:01]}  f6 {[%clk 0:00:01]} 12. fxe4 {[%clk 0:00:01]}  fxe5 {[%clk 0:00:01]} 13. dxe5 {[%clk 0:00:01]}  Bc5 {[%clk 0:00:01]} 14. exd5 {[%clk 0:00:01]}  exd5 {[%clk 0:00:01]} 15. g5 {[%clk 0:00:01]}  Nc6 {[%clk 0:00:01]} 16. Bg2 {[%clk 0:00:01]}  Ne7 {[%clk 0:00:01]} 17. Qd3 {[%clk 0:00:01]}  c6 {[%clk 0:00:01]} 18. O-O {[%clk 0:00:01]}  Qd7 {[%clk 0:00:01]} 19. Rab1 {[%clk 0:00:01]}  b5 {[%clk 0:00:01]} 20. a4 {[%clk 0:00:01]}  Qg4 {[%clk 0:00:01]} 21. axb5 {[%clk 0:00:01]}  axb5 {[%clk 0:00:01]} 22. Qd1 {[%clk 0:00:00]}  Qxd1 {[%clk 0:00:00]} 23. Rfxd1 {[%clk 0:00:00]}  O-O {[%clk 0:00:00]} 24. Kh2 {[%clk 0:00:00]}  Nf5 {[%clk 0:00:00]} 25. Rd3 {[%clk 0:00:00]}  Ra2 {[%clk 0:00:00]} 26. Rc1 {[%clk 0:00:00]}  Rfa8 {[%clk 0:00:00]} 27. e6 {[%clk 0:00:00]}  Re8 {[%clk 0:00:00]} 28. e4 {[%clk 0:00:00]}  dxe4 {[%clk 0:00:00]} 29. Bxe4 {[%clk 0:00:00]}  g6 {[%clk 0:00:00]} 30. Bxc6 {[%clk 0:00:00]}  Rf8 {[%clk 0:00:00]} 31. Bxb5 {[%clk 0:00:00]}  Nh4 {[%clk 0:00:00]} 32. e7 {[%clk 0:00:00]}  Bxe7 {[%clk 0:00:00]} 33. Bc4+ {[%clk 0:00:00]}  Kg7 {[%clk 0:00:00]} 34. Be5+ {[%clk 0:00:00]}  Bf6 {[%clk 0:00:00]} 35. gxf6+ {[%clk 0:00:00]}  Kh6 {[%clk 0:00:00]} 36. Bxa2 {[%clk 0:00:00]}  g5 {[%clk 0:00:00]} 37. f7 {[%clk 0:00:00]}  g4 {[%clk 0:00:00]} 38. Bd6 {[%clk 0:00:00]}  Rc8 {[%clk 0:00:00]} 39. f8=Q+ {[%clk 0:00:00]} 1-0


[Site "https://www.chess.com"]

[Event "Titled Tuesday Blitz May 2 Early 2023"]
[White "Wessendorf, Thomas, Dr."]
[Black "Flis, Pawel"]
[WhiteFideId "4604270"]
[BlackFideId "1112864"]
[WhiteElo "2280"]
[BlackElo "1822"]
[Result "1-0"]
[Round "11"]
[TimeControl "180+2"]
[Date "2023.05.03"]
[WhiteClock "0:00:00"]
[BlackClock "0:00:00"]

1. e4 {[%clk 0:00:01]}  c5 {[%clk 0:00:01]} 2. Nf3 {[%clk 0:00:01]}  d6 {[%clk 0:00:01]} 3. d4 {[%clk 0:00:01]}  Nf6 {[%clk 0:00:01]} 4. Nc3 {[%clk 0:00:01]}  cxd4 {[%clk 0:00:01]} 5. Nxd4 {[%clk 0:00:01]}  a6 {[%clk 0:00:01]} 6. Be3 {[%clk 0:00:01]}  e5 {[%clk 0:00:01]} 7. Nb3 {[%clk 0:00:01]}  Be6 {[%clk 0:00:01]} 8. Qd2 {[%clk 0:00:01]}  Be7 {[%clk 0:00:01]} 9. f4 {[%clk 0:00:01]}  Ng4 {[%clk 0:00:01]} 10. f5 {[%clk 0:00:01]}  Bd7 {[%clk 0:00:01]} 11. Nd5 {[%clk 0:00:01]}  Nxe3 {[%clk 0:00:01]} 12. Qxe3 {[%clk 0:00:01]}  Nc6 {[%clk 0:00:01]} 13. Bd3 {[%clk 0:00:01]}  O-O {[%clk 0:00:01]} 14. O-O {[%clk 0:00:01]}  Bg5 {[%clk 0:00:01]} 15. Qf2 {[%clk 0:00:01]}  f6 {[%clk 0:00:01]} 16. h4 {[%clk 0:00:01]}  Bh6 {[%clk 0:00:01]} 17. g4 {[%clk 0:00:01]}  Bf4 {[%clk 0:00:01]} 18. Nxf4 {[%clk 0:00:00]}  exf4 {[%clk 0:00:01]} 19. Bc4+ {[%clk 0:00:00]}  Kh8 {[%clk 0:00:01]} 20. Qxf4 {[%clk 0:00:00]}  Ne5 {[%clk 0:00:01]} 21. Bd5 {[%clk 0:00:00]}  Bc6 {[%clk 0:00:01]} 22. Rad1 {[%clk 0:00:00]}  Bxd5 {[%clk 0:00:01]} 23. Rxd5 {[%clk 0:00:00]}  Rc8 {[%clk 0:00:01]} 24. Rf2 {[%clk 0:00:00]}  Rc6 {[%clk 0:00:00]} 25. Nd4 {[%clk 0:00:00]}  Rc4 {[%clk 0:00:00]} 26. Ne6 {[%clk 0:00:00]}  Qc8 {[%clk 0:00:00]} 27. c3 {[%clk 0:00:00]}  Re8 {[%clk 0:00:00]} 28. Rfd2 {[%clk 0:00:00]}  Nf7 {[%clk 0:00:00]} 29. g5 {[%clk 0:00:00]}  Rc6 {[%clk 0:00:00]} 30. gxf6 {[%clk 0:00:00]}  gxf6 {[%clk 0:00:00]} 31. Rg2 {[%clk 0:00:00]}  Rg8 {[%clk 0:00:00]} 32. Rd2 {[%clk 0:00:00]}  Ne5 {[%clk 0:00:00]} 33. Qh6 {[%clk 0:00:00]}  Nd7 {[%clk 0:00:00]} 34. Rg7 {[%clk 0:00:00]} 1-0


[Site "https://www.chess.com"]

[Event "Titled Tuesday Blitz May 2 Early 2023"]
[White "Kubatko, Ivan"]
[Black "Schut, Han"]
[WhiteFideId "24111473"]
[BlackFideId "1005561"]
[WhiteElo "2285"]
[BlackElo "2024"]
[Result "1-0"]
[Round "11"]
[TimeControl "180+2"]
[Date "2023.05.03"]
[WhiteClock "0:00:00"]
[BlackClock "0:00:00"]

1. e4 {[%clk 0:00:01]}  c5 {[%clk 0:00:01]} 2. Nc3 {[%clk 0:00:01]}  g6 {[%clk 0:00:01]} 3. f4 {[%clk 0:00:01]}  Bg7 {[%clk 0:00:01]} 4. Nf3 {[%clk 0:00:01]}  Nc6 {[%clk 0:00:01]} 5. Bc4 {[%clk 0:00:01]}  e6 {[%clk 0:00:01]} 6. f5 {[%clk 0:00:01]}  Nge7 {[%clk 0:00:01]} 7. fxe6 {[%clk 0:00:01]}  dxe6 {[%clk 0:00:01]} 8. d3 {[%clk 0:00:01]}  O-O {[%clk 0:00:01]} 9. Bg5 {[%clk 0:00:01]}  a6 {[%clk 0:00:01]} 10. a4 {[%clk 0:00:01]}  Qa5 {[%clk 0:00:01]} 11. O-O {[%clk 0:00:01]}  Re8 {[%clk 0:00:00]} 12. Qe1 {[%clk 0:00:01]}  f6 {[%clk 0:00:00]} 13. Qh4 {[%clk 0:00:01]}  fxg5 {[%clk 0:00:00]} 14. Nxg5 {[%clk 0:00:01]}  h6 {[%clk 0:00:00]} 15. Nf7 {[%clk 0:00:01]}  Kh7 {[%clk 0:00:00]} 16. Ng5+ {[%clk 0:00:01]}  Kg8 {[%clk 0:00:00]} 17. Bxe6+ {[%clk 0:00:00]}  Bxe6 {[%clk 0:00:00]} 18. Nxe6 {[%clk 0:00:00]}  c4 {[%clk 0:00:00]} 19. Nxg7 {[%clk 0:00:00]}  Kxg7 {[%clk 0:00:00]} 20. Qf6+ {[%clk 0:00:00]} 1-0


[Site "https://www.chess.com"]